fUSD/lending_fUSD_20240420
["ID","MTS","AMOUNT","RATE_DAILY","PERIOD"]
[322987511,1713575439237,-500.0,0.00015068,2]
[322987513,1713575439250,-500.0,0.00015068,2]
[322987514,1713575439289,-500.0,0.00015068,2]
[322987515,1713575439300,-1059.68,0.00015068,2]
[322987516,1713575439313,-1125.81,0.00015068,2]
[322987517,1713575439325,-500.0,0.00015068,2]
[322987518,1713575439336,-608.61,0.00015068,2]
[322987519,1713575439348,-500.0,0.00015068,2]
[322987520,1713575439358,-725.52,0.00015068,2]
[322987521,1713575439368,-500.0,0.00015068,2]
[322987522,1713575439379,-500.0,0.00015068,2]
[322987523,1713575439391,-500.0,0.00015068,2]
[322987524,1713575439402,-499.35585212,0.00015068,2]
[322987525,1713575439414,-500.0,0.00015068,2]
[322987526,1713575439426,-500.0,0.00015068,2]
[322987527,1713575439438,-596.99,0.00015068,2]
[322987528,1713575439450,-500.0,0.00015068,2]
[322987529,1713575439461,-500.0,0.00015068,2]
[322987532,1713575439470,-500.0,0.00015068,2]
[322987535,1713575439480,-874.51,0.00015068,2]
[322987537,1713575439490,-1176.3,0.00015068,2]
[322987538,1713575439500,-775.13,0.00015068,2]
[322987539,1713575439511,-500.0,0.00015068,2]
[322987540,1713575439521,-500.0,0.00015068,2]
[322987541,1713575439532,-500.0,0.00015068,2]
[322987542,1713575439543,-500.0,0.00015068,2]
[322987543,1713575439553,-500.0,0.00015068,2]
[322987544,1713575439566,-786.76,0.00015068,2]
[322987545,1713575439577,-631.91,0.00015068,2]
[322987546,1713575439587,-500.0,0.00015068,2]
[322987547,1713575439597,-633.31,0.00015068,2]
[322987548,1713575439607,-500.0,0.00015068,2]
[322987549,1713575439616,-500.0,0.00015068,2]
[322987550,1713575439626,-500.0,0.00015068,2]
[322987551,1713575439636,-500.0,0.00015068,2]
[322987552,1713575439646,-818.8,0.00015068,2]
[322987553,1713575439657,-500.0,0.00015068,2]
[322987554,1713575439668,-900.97,0.00015068,2]
[322987555,1713575439679,-500.0,0.00015068,2]
[322987556,1713575439690,-516.18,0.00015068,2]
[322987557,1713575439701,-1234.62,0.00015068,2]
[322987558,1713575439712,-500.0,0.00015068,2]
[322987559,1713575439723,-500.0,0.00015068,2]
[322987560,1713575439734,-500.0,0.00015068,2]
[322987561,1713575439744,-565.52,0.00015068,2]
[322987562,1713575439754,-500.0,0.00015068,2]
[322987563,1713575439764,-520.22,0.00015068,2]
[322987564,1713575439775,-334.77131245,0.00015068,2]
[322987565,1713575439788,-819.66,0.00015068,2]
[322987566,1713575439798,-500.0,0.00015068,2]
[322987567,1713575439809,-532.22,0.00015068,2]
[322987568,1713575439821,-523.65,0.00015068,2]
[322987569,1713575439833,-500.0,0.00015068,2]
[322987570,1713575439844,-1448.78,0.00015068,2]
[322987571,1713575439856,-500.0,0.00015068,2]
[322987572,1713575439867,-500.0,0.00015068,2]
[322987573,1713575439877,-500.0,0.00015068,2]
[322987574,1713575439888,-500.0,0.00015068,2]
[322987575,1713575439898,-500.0,0.00015068,2]
[322987576,1713575439911,-756.52,0.00015068,2]
[322987577,1713575439921,-1046.54,0.00015068,2]
[322987578,1713575439931,-500.0,0.00015068,2]
[322987579,1713575439941,-611.64,0.00015068,2]
[322987580,1713575439952,-623.82,0.00015068,2]
[322987581,1713575439962,-500.0,0.00015068,2]
[322987582,1713575439973,-500.0,0.00015068,2]
[322987583,1713575439985,-500.0,0.00015068,2]
[322987584,1713575439995,-500.0,0.00015068,2]
[322987585,1713575440005,-150.0,0.00015068,2]
[322987586,1713575440015,-500.0,0.00015068,2]
[322987587,1713575440024,-500.0,0.00015068,2]
[322987588,1713575440034,-647.88,0.00015068,2]
[322987589,1713575440046,-500.0,0.00015068,2]
[322987590,1713575440057,-612.86,0.00015068,2]
[322987591,1713575440066,-1992.72,0.00015068,2]
[322987592,1713575440076,-500.0,0.00015068,2]
[322987593,1713575440086,-500.0,0.00015068,2]
[322987594,1713575440096,-530.63,0.00015068,2]
[322987595,1713575440106,-500.0,0.00015068,2]
[322987596,1713575440117,-500.0,0.00015068,2]
[322987597,1713575440127,-881.11,0.00015068,2]
[322987598,1713575440136,-500.0,0.00015068,2]
[322987599,1713575440146,-500.0,0.00015068,2]
[322987601,1713575440156,-500.0,0.00015068,2]
[322987603,1713575440166,-500.0,0.00015068,2]
[322987604,1713575440175,-500.0,0.00015068,2]
[322987605,1713575440185,-500.0,0.00015068,2]
[322987606,1713575440195,-863.54,0.00015068,2]
[322987607,1713575440206,-2076.58,0.00015068,2]
[322987608,1713575440216,-500.0,0.00015068,2]
[322987609,1713575440226,-755.48,0.00015068,2]
[322987610,1713575440236,-1017.76,0.00015068,2]
[322987611,1713575440246,-1106.85,0.00015068,2]
[322987612,1713575440256,-1640.4,0.00015068,2]
[322987613,1713575440266,-500.0,0.00015068,2]
[322987614,1713575440277,-500.0,0.00015068,2]
[322987615,1713575440286,-500.0,0.00015068,2]
[322987616,1713575440297,-500.0,0.00015068,2]
[322987617,1713575440308,-605.67,0.00015068,2]
[322987618,1713575440318,-500.0,0.00015068,2]
[322987619,1713575440329,-500.0,0.00015068,2]
[322987620,1713575440339,-682.03,0.00015068,2]
[322987621,1713575440349,-1254.43,0.00015068,2]
[322987622,1713575440359,-500.0,0.00015068,2]
[322987623,1713575440371,-2829.26,0.00015068,2]
[322987624,1713575440382,-904.8,0.00015068,2]
[322987625,1713575440393,-535.09,0.00015068,2]
[322987626,1713575440406,-500.0,0.00015068,2]
[322987627,1713575440416,-5657.92,0.00015068,2]
[322987628,1713575440427,-1952.96,0.00015068,2]
[322987629,1713575440440,-4016.33,0.00015068,2]
[322987630,1713575440451,-500.0,0.00015068,2]
[322987631,1713575440461,-500.0,0.00015068,2]
[322987632,1713575440471,-807.01,0.00015068,2]
[322987633,1713575440481,-500.0,0.00015068,2]
[322987634,1713575440493,-5792.13,0.00015068,2]
[322987635,1713575440502,-3579.73,0.00015068,2]
[322987636,1713575440513,-4861.91,0.00015068,2]
[322987637,1713575440524,-500.0,0.00015068,2]
[322987638,1713575440536,-5796.99,0.00015068,2]
[322987639,1713575440550,-500.0,0.00015068,2]
[322987640,1713575440563,-168.34037484,0.00015068,2]
[322987641,1713575440574,-927.4,0.00015068,2]
[322987642,1713575440585,-500.0,0.00015068,2]
[322987643,1713575440595,-12877.89,0.00015068,2]
[322987644,1713575440606,-2524.64,0.00015068,2]
[322987645,1713575440619,-4524.97,0.00015068,2]
[322987646,1713575440630,-500.8,0.00015068,2]
[322987647,1713575440641,-508.59,0.00015068,2]
[322987648,1713575440653,-529.4,0.00015068,2]
[322987649,1713575440664,-500.0,0.00015068,2]
[322987650,1713575440674,-3034.63,0.00015068,2]
[322987651,1713575440685,-2002.99,0.00015068,2]
[322987652,1713575440697,-500.0,0.00015068,2]
[322987653,1713575440708,-500.0,0.00015068,2]
[322987654,1713575440720,-500.0,0.00015068,2]
[322987655,1713575440732,-1594.75,0.00015068,2]
[322987656,1713575440743,-500.0,0.00015068,2]
[322987657,1713575440756,-2221.82,0.00015068,2]
[322987658,1713575440768,-500.0,0.00015068,2]
[322987659,1713575440779,-500.0,0.00015068,2]
[322987660,1713575440790,-1969.25,0.00015068,2]
[322987661,1713575440800,-23790.82,0.00015068,2]
[322987662,1713575440809,-929.28,0.00015068,2]
[322987663,1713575440819,-651.86,0.00015068,2]
[322987664,1713575440831,-3780.99,0.00015068,2]
[322987665,1713575440842,-500.0,0.00015068,2]
[322987666,1713575440854,-500.0,0.00015068,2]
[322987667,1713575440866,-1626.32,0.00015068,2]
[322987668,1713575440877,-2732.61,0.00015068,2]
[322987669,1713575440888,-500.0,0.00015068,2]
[322987670,1713575440900,-500.0,0.00015068,2]
[322987671,1713575440914,-500.0,0.00015068,2]
[322987672,1713575440926,-500.0,0.00015068,2]
[322987673,1713575440937,-500.0,0.00015068,2]
[322987674,1713575440950,-500.0,0.00015068,2]
[322987675,1713575440961,-2025.65,0.00015068,2]
[322987676,1713575440973,-7618.61,0.00015068,2]
[322987677,1713575440985,-6442.52,0.00015068,2]
[322987678,1713575440997,-698.39,0.00015068,2]
[322987679,1713575441007,-500.0,0.00015068,2]
[322987680,1713575441018,-500.81,0.00015068,2]
[322987681,1713575441029,-500.0,0.00015068,2]
[322987682,1713575441040,-500.0,0.00015068,2]
[322987683,1713575441050,-500.0,0.00015068,2]
[322987684,1713575441060,-1177.1,0.00015068,2]
[322987685,1713575441071,-630.55,0.00015068,2]
[322987686,1713575441082,-4570.49,0.00015068,2]
[322987687,1713575441092,-35882.61,0.00015068,2]
[322987688,1713575441102,-716.92,0.00015068,2]
[322987689,1713575441113,-3843.9,0.00015068,2]
[322987690,1713575441123,-500.0,0.00015068,2]
[322987691,1713575441133,-935.02,0.00015068,2]
[322987692,1713575441143,-500.0,0.00015068,2]
[322987693,1713575441153,-500.0,0.00015068,2]
[322987694,1713575441163,-500.0,0.00015068,2]
[322987695,1713575441175,-32658.38,0.00015068,2]
[322987696,1713575441185,-2826.6,0.00015068,2]
[322987697,1713575441194,-3148.96,0.00015068,2]
[322987698,1713575441204,-500.0,0.00015068,2]
[322987699,1713575441214,-7577.0,0.00015068,2]
[322987700,1713575441224,-500.0,0.00015068,2]
[322987701,1713575441235,-2027.7,0.00015068,2]
[322987702,1713575441244,-3036.83,0.00015068,2]
[322987703,1713575441255,-1086.87,0.00015068,2]
[322987704,1713575441266,-500.0,0.00015068,2]
[322987705,1713575441276,-526.85,0.00015068,2]
[322987706,1713575441286,-500.0,0.00015068,2]
[322987707,1713575441298,-4855.5,0.00015068,2]
[322987708,1713575441309,-2895.1,0.00015068,2]
[322987709,1713575441320,-500.0,0.00015068,2]
[322987710,1713575441331,-2410.85,0.00015068,2]
[322987711,1713575441341,-1058.51,0.00015068,2]
[322987712,1713575441351,-2432.23,0.00015068,2]
[322987713,1713575441360,-728.93,0.00015068,2]
[322987714,1713575441369,-500.0,0.00015068,2]
[322987715,1713575441378,-1980.03,0.00015068,2]
[322987716,1713575441387,-1488.28,0.00015068,2]
[322987717,1713575441397,-1094.35,0.00015068,2]
[322987718,1713575441711,-8426.34,0.00015068,2]
[322987719,1713575441721,-500.0,0.00015068,2]
[322987720,1713575441730,-500.0,0.00015068,2]
[322987721,1713575441740,-500.0,0.00015068,2]
[322987722,1713575441750,-950.78,0.00015068,2]
[322987723,1713575441762,-833.71,0.00015068,2]
[322987724,1713575441773,-1767.07,0.00015068,2]
[322987725,1713575441786,-1152.78,0.00015068,2]
[322987726,1713575441796,-12445.66,0.00015068,2]
[322987727,1713575441806,-500.0,0.00015068,2]
[322987728,1713575441815,-524.78,0.00015068,2]
[322987729,1713575441826,-500.0,0.00015068,2]
[322987730,1713575441838,-2954.15,0.00015068,2]
[322987731,1713575441848,-1832.22,0.00015068,2]
[322987732,1713575441859,-500.0,0.00015068,2]
[322987733,1713575441871,-557.89,0.00015068,2]
[322987734,1713575441883,-500.0,0.00015068,2]
[322987735,1713575441895,-1756.41,0.00015068,2]
[322987736,1713575441905,-500.0,0.00015068,2]
[322987737,1713575441918,-500.0,0.00015068,2]
[322987738,1713575441928,-605.54,0.00015068,2]
[322987739,1713575441939,-1944.0,0.00015068,2]
[322987740,1713575441950,-500.0,0.00015068,2]
[322987741,1713575441962,-500.0,0.00015068,2]
[322987742,1713575441973,-500.0,0.00015068,2]
[322987743,1713575441985,-1463.88,0.00015068,2]
[322987744,1713575441997,-1365.44,0.00015068,2]
[322987745,1713575442007,-500.0,0.00015068,2]
[322987746,1713575442019,-2611.47,0.00015068,2]
[322987747,1713575442031,-500.0,0.00015068,2]
[322987748,1713575442042,-500.0,0.00015068,2]
[322987749,1713575442053,-606.03,0.00015068,2]
[322987750,1713575442062,-673.79,0.00015068,2]
[322987751,1713575442073,-2938.86,0.00015068,2]
[322987752,1713575442082,-1320.04,0.00015068,2]
[322987753,1713575442092,-2951.42,0.00015068,2]
[322987754,1713575442101,-1249.28,0.00015068,2]
[322987755,1713575442110,-500.0,0.00015068,2]
[322987756,1713575442119,-5042.1,0.00015068,2]
[322987757,1713575442128,-500.0,0.00015068,2]
[322987758,1713575442138,-675.02,0.00015068,2]
[322987759,1713575442147,-500.0,0.00015068,2]
[322987760,1713575442156,-500.0,0.00015068,2]
[322987761,1713575442165,-3193.68,0.00015068,2]
[322987762,1713575442174,-500.0,0.00015068,2]
[322987763,1713575442183,-1219.42,0.00015068,2]
[322987764,1713575442193,-2200.49,0.00015068,2]
[322987765,1713575442202,-3893.17,0.00015068,2]
[322987766,1713575442212,-500.0,0.00015068,2]
[322987767,1713575442222,-824.62,0.00015068,2]
[322987768,1713575442232,-539.52,0.00015068,2]
[322987770,1713575442241,-2492.0,0.00015068,2]
[322987771,1713575442252,-500.0,0.00015068,2]
[322987772,1713575442261,-3118.55,0.00015068,2]
[322987773,1713575442271,-2017.98,0.00015068,2]
[322987775,1713575442280,-500.0,0.00015068,2]
[322987777,1713575442291,-500.0,0.00015068,2]
[322987778,1713575442301,-709.1,0.00015068,2]
[322987781,1713575442311,-1105.93,0.00015068,2]
[322987783,1713575442321,-500.0,0.00015068,2]
[322987784,1713575442330,-656.0,0.00015068,2]
[322987786,1713575442340,-500.0,0.00015068,2]
[322987788,1713575442349,-2660.84,0.00015068,2]
[322987789,1713575442360,-2648.26,0.00015068,2]
[322987790,1713575442369,-5858.6,0.00015068,2]
[322987791,1713575442378,-6880.58,0.00015068,2]
[322987792,1713575442388,-5251.71,0.00015068,2]
[322987794,1713575442397,-500.0,0.00015068,2]
[322987795,1713575442407,-718.66,0.00015068,2]
[322987797,1713575442416,-1192.05,0.00015068,2]
[322987799,1713575442425,-500.0,0.00015068,2]
[322987801,1713575442434,-500.0,0.00015068,2]
[322987803,1713575442443,-4081.92,0.00015068,2]
[322987805,1713575442452,-3358.06,0.00015068,2]
[322987806,1713575442461,-500.0,0.00015068,2]
[322987807,1713575442470,-500.0,0.00015068,2]
[322987808,1713575442479,-914.35,0.00015068,2]
[322987809,1713575442488,-500.0,0.00015068,2]
[322987810,1713575442497,-500.0,0.00015068,2]
[322987811,1713575442506,-2082.01,0.00015068,2]
[322987813,1713575442515,-1527.72,0.00015068,2]
[322987814,1713575442524,-2447.73,0.00015068,2]
[322987816,1713575442533,-500.0,0.00015068,2]
[322987818,1713575442543,-367.17270679,0.00015068,2]
[322987820,1713575442553,-3493.83,0.00015068,2]
[322987822,1713575442562,-500.0,0.00015068,2]
[322987824,1713575442570,-2954.37,0.00015068,2]
[322987826,1713575442579,-1491.18,0.00015068,2]
[322987827,1713575442589,-500.0,0.00015068,2]
[322987828,1713575442598,-500.0,0.00015068,2]
[322987829,1713575442608,-1265.98,0.00015068,2]
[322987830,1713575442617,-718.98,0.00015068,2]
[322987831,1713575442627,-666.55,0.00015068,2]
[322987832,1713575442636,-562.72,0.00015068,2]
[322987833,1713575442645,-828.4,0.00015068,2]
[322987834,1713575442654,-1168.45,0.00015068,2]
[322987835,1713575442663,-500.0,0.00015068,2]
[322987836,1713575442672,-1803.33,0.00015068,2]
[322987837,1713575442681,-500.0,0.00015068,2]
[322987838,1713575442691,-1213.95,0.00015068,2]
[322987839,1713575442700,-3469.21,0.00015068,2]
[322987840,1713575442709,-721.81,0.00015068,2]
[322987841,1713575442718,-3502.45,0.00015068,2]
[322987842,1713575442727,-2411.67,0.00015068,2]
[322987843,1713575442736,-1076.57,0.00015068,2]
[322987844,1713575442746,-1166.06,0.00015068,2]
[322987845,1713575442756,-613.28466232,0.00015068,2]
[322987846,1713575442765,-356.37058711,0.00015068,2]
[322987847,1713575442774,-500.0,0.00015068,2]
[322987848,1713575442783,-500.0,0.00015068,2]
[322987849,1713575442795,-154.53055415,0.00015068,2]
[322987850,1713575442804,-867.45,0.00015068,2]
[322987851,1713575442813,-562.74,0.00015068,2]
[322987852,1713575442822,-1045.09,0.00015068,2]
[322987853,1713575442831,-19320.71,0.00015068,2]
[322987854,1713575442840,-1140.03,0.00015068,2]
[322987855,1713575442849,-500.0,0.00015068,2]
[322987856,1713575442859,-801.19,0.00015068,2]
[322987857,1713575442868,-500.0,0.00015068,2]
[322987858,1713575442877,-2585.23,0.00015068,2]
[322987859,1713575442886,-500.0,0.00015068,2]
[322987860,1713575442896,-500.0,0.00015068,2]
[322987861,1713575442911,-500.0,0.00015068,2]
[322987862,1713575442920,-1607.42,0.00015068,2]
[322987863,1713575442930,-500.0,0.00015068,2]
[322987864,1713575442939,-976.77,0.00015068,2]
[322987865,1713575442949,-596.54,0.00015068,2]
[322987866,1713575442958,-2166.8,0.00015068,2]
[322987867,1713575442967,-500.0,0.00015068,2]
[322987868,1713575442976,-7074.56,0.00015068,2]
[322987869,1713575442987,-628.47,0.00015068,2]
[322987870,1713575442996,-487.35787038,0.00015068,2]
[322987871,1713575443005,-572.56,0.00015068,2]
[322987872,1713575443014,-2297.29,0.00015068,2]
[322987873,1713575443024,-2851.58,0.00015068,2]
[322987874,1713575443033,-500.0,0.00015068,2]
[322987875,1713575443044,-2431.73,0.00015068,2]
[322987877,1713575443054,-584.09283003,0.00015068,2]
[322987878,1713575443063,-500.0,0.00015068,2]
[322987879,1713575443073,-500.0,0.00015068,2]
[322987880,1713575443083,-500.0,0.00015068,2]
[322987881,1713575443093,-625.41,0.00015068,2]
[322987882,1713575443102,-500.0,0.00015068,2]
[322987883,1713575443111,-1979.84,0.00015068,2]
[322987884,1713575443122,-5380.39,0.00015068,2]
[322987885,1713575443131,-500.0,0.00015068,2]
[322987886,1713575443141,-743.96,0.00015068,2]
[322987887,1713575443150,-500.0,0.00015068,2]
[322987888,1713575443159,-413.05,0.00015141,2]
[322987889,1713575443168,-909.46,0.00015141,2]
[322987890,1713575443178,-909.46,0.00015141,2]
[322987891,1713575443188,-8681.55382845,0.00015162,2]
[322987892,1713575443197,-5743.21540452,0.00015237,2]
[322987893,1713575443207,-3020.5385413,0.00015242,2]
[322987894,1713575443216,-674.05058072,0.00015242,2]
[322987895,1713575443225,-521.73,0.0001526,2]
[322987896,1713575443235,-300.0,0.0001526,2]
[322987897,1713575443244,-150.0,0.0001526,2]
[322987898,1713575443257,-150.0,0.0001526,2]
[322987899,1713575443266,-150.0,0.0001526,2]
[322987900,1713575443276,-150.0,0.0001526,2]
[322987901,1713575443285,-162.67,0.0001526,2]
[322987902,1713575443295,-418.87,0.0001526,2]
[322987903,1713575443304,-835.59,0.0001526,2]
[322987904,1713575443314,-521.73,0.0001526,2]
[322987905,1713575443323,-150.0,0.0001526,2]
[322987906,1713575443334,-162.67,0.0001526,2]
[322987907,1713575443345,-150.0,0.0001526,2]
[322987908,1713575443357,-418.87,0.0001526,2]
[322987909,1713575443367,-162.22,0.0001526,2]
[322987910,1713575443377,-521.73,0.0001526,2]
[322987911,1713575443388,-150.0,0.0001526,2]
[322987912,1713575443397,-521.73,0.0001526,2]
[322987913,1713575443406,-150.0,0.0001526,2]
[322987914,1713575443416,-159.78,0.00015278,2]
[322987915,1713575443426,-160.22,0.00015278,2]
[322987916,1713575443435,-150.0,0.00015278,2]
[322987917,1713575443446,-500.0,0.00015342,2]
[322987918,1713575443457,-500.0,0.00015342,2]
[322987919,1713575443467,-500.0,0.00015342,2]
[322987920,1713575443477,-500.0,0.00015342,2]
[322987921,1713575443486,-893.74,0.00015342,2]
[322987922,1713575443496,-539.63,0.00015342,2]
[322987923,1713575443507,-500.0,0.00015342,2]
[322987924,1713575443517,-500.0,0.00015342,2]
[322987925,1713575443528,-500.0,0.00015342,2]
[322987926,1713575443537,-844.52,0.00015342,2]
[322987927,1713575443549,-1069.07,0.00015342,2]
[322987928,1713575443558,-500.0,0.00015342,2]
[322987929,1713575443567,-500.0,0.00015342,2]
[322987930,1713575443576,-1043.42,0.00015342,2]
[322987931,1713575443586,-500.0,0.00015342,2]
[322987932,1713575443595,-500.0,0.00015342,2]
[322987933,1713575443605,-500.0,0.00015342,2]
[322987934,1713575443614,-500.0,0.00015342,2]
[322987935,1713575443623,-500.0,0.00015342,2]
[322987936,1713575443632,-650.02,0.00015342,2]
[322987937,1713575443642,-966.32,0.00015342,2]
[322987938,1713575443651,-846.88,0.00015342,2]
[322987939,1713575443661,-566.37,0.00015342,2]
[322987940,1713575443670,-543.2,0.00015342,2]
[322987941,1713575443679,-577.1,0.00015342,2]
[322987942,1713575443688,-500.0,0.00015342,2]
[322987943,1713575443698,-500.0,0.00015342,2]
[322987944,1713575443707,-500.0,0.00015342,2]
[322987945,1713575443716,-717.94,0.00015342,2]
[322987946,1713575443725,-896.87,0.00015342,2]
[322987947,1713575443734,-500.0,0.00015342,2]
[322987948,1713575443743,-1193.18,0.00015342,2]
[322987949,1713575443752,-500.0,0.00015342,2]
[322987950,1713575443762,-1787.29,0.00015342,2]
[322987951,1713575443771,-1076.64,0.00015342,2]
[322987952,1713575443780,-500.0,0.00015342,2]
[322987953,1713575443789,-500.0,0.00015342,2]
[322987954,1713575443800,-500.0,0.00015342,2]
[322987955,1713575443810,-500.0,0.00015342,2]
[322987956,1713575443819,-500.0,0.00015342,2]
[322987957,1713575443829,-1105.57,0.00015342,2]
[322987958,1713575443838,-500.0,0.00015342,2]
[322987959,1713575443847,-1240.23,0.00015342,2]
[322987960,1713575443857,-500.0,0.00015342,2]
[322987961,1713575443866,-500.0,0.00015342,2]
[322987962,1713575443875,-500.0,0.00015342,2]
[322987963,1713575443884,-500.0,0.00015342,2]
[322987964,1713575443894,-1167.31,0.00015342,2]
[322987965,1713575443904,-769.07,0.00015342,2]
[322987966,1713575443916,-740.11,0.00015342,2]
[322987967,1713575443925,-500.0,0.00015342,2]
[322987968,1713575443934,-500.0,0.00015342,2]
[322987969,1713575443944,-500.0,0.00015342,2]
[322987970,1713575443954,-500.0,0.00015342,2]
[322987971,1713575443964,-500.0,0.00015342,2]
[322987972,1713575443973,-500.0,0.00015342,2]
[322987973,1713575443983,-500.0,0.00015342,2]
[322987974,1713575443992,-500.0,0.00015342,2]
[322987975,1713575444001,-500.0,0.00015342,2]
[322987976,1713575444010,-500.0,0.00015342,2]
[322987977,1713575444019,-500.0,0.00015342,2]
[322987978,1713575444028,-500.0,0.00015342,2]
[322987979,1713575444037,-658.0,0.00015342,2]
[322987980,1713575444047,-1471.81,0.00015342,2]
[322987981,1713575444056,-500.0,0.00015342,2]
[322987982,1713575444065,-500.0,0.00015342,2]
[322987983,1713575444075,-500.0,0.00015342,2]
[322987984,1713575444084,-512.63,0.00015342,2]
[322987985,1713575444094,-500.0,0.00015342,2]
[322987986,1713575444103,-605.53,0.00015342,2]
[322987987,1713575444112,-893.58,0.00015342,2]
[322987988,1713575444120,-500.0,0.00015342,2]
[322987989,1713575444130,-500.0,0.00015342,2]
[322987990,1713575444139,-1032.24,0.00015342,2]
[322987991,1713575444148,-500.0,0.00015342,2]
[322987992,1713575444157,-500.0,0.00015342,2]
[322987993,1713575444166,-500.0,0.00015342,2]
[322987994,1713575444175,-500.0,0.00015342,2]
[322987995,1713575444189,-500.0,0.00015342,2]
[322987996,1713575444198,-500.0,0.00015342,2]
[322987997,1713575444207,-500.0,0.00015342,2]
[322987998,1713575444217,-500.0,0.00015342,2]
[322987999,1713575444227,-786.61,0.00015342,2]
[322988000,1713575444236,-876.82,0.00015342,2]
[322988001,1713575444245,-726.45,0.00015342,2]
[322988002,1713575444255,-500.0,0.00015342,2]
[322988003,1713575444264,-500.0,0.00015342,2]
[322988004,1713575444273,-500.0,0.00015342,2]
[322988005,1713575444283,-500.0,0.00015342,2]
[322988006,1713575444293,-500.0,0.00015342,2]
[322988007,1713575444303,-500.0,0.00015342,2]
[322988008,1713575444312,-1059.68,0.00015342,2]
[322988009,1713575444322,-1125.81,0.00015342,2]
[322988010,1713575444331,-500.0,0.00015342,2]
[322988011,1713575444341,-608.61,0.00015342,2]
[322988012,1713575444352,-500.0,0.00015342,2]
[322988013,1713575444361,-725.52,0.00015342,2]
[322988014,1713575444370,-500.0,0.00015342,2]
[322988015,1713575444379,-500.0,0.00015342,2]
[322988016,1713575444388,-500.0,0.00015342,2]
[322988017,1713575444398,-500.0,0.00015342,2]
[322988018,1713575444407,-596.99,0.00015342,2]
[322988019,1713575444417,-500.0,0.00015342,2]
[322988020,1713575444427,-500.0,0.00015342,2]
[322988021,1713575444437,-500.0,0.00015342,2]
[322988022,1713575444447,-874.51,0.00015342,2]
[322988023,1713575444456,-1176.3,0.00015342,2]
[322988024,1713575444466,-775.13,0.00015342,2]
[322988025,1713575444475,-500.0,0.00015342,2]
[322988026,1713575444484,-500.0,0.00015342,2]
[322988027,1713575444493,-500.0,0.00015342,2]
[322988028,1713575444502,-786.76,0.00015342,2]
[322988029,1713575444512,-500.0,0.00015342,2]
[322988030,1713575444521,-631.91,0.00015342,2]
[322988031,1713575444530,-500.0,0.00015342,2]
[322988032,1713575444539,-633.31,0.00015342,2]
[322988033,1713575444550,-500.0,0.00015342,2]
[322988034,1713575444558,-500.0,0.00015342,2]
[322988035,1713575444567,-500.0,0.00015342,2]
[322988036,1713575444577,-500.0,0.00015342,2]
[322988037,1713575444586,-818.8,0.00015342,2]
[322988038,1713575444595,-500.0,0.00015342,2]
[322988039,1713575444604,-900.97,0.00015342,2]
[322988040,1713575444614,-500.0,0.00015342,2]